fUST/lending_fUST_20260311
["ID","MTS","AMOUNT","RATE_DAILY","PERIOD"]
[408202006,1773223841400,-1263.16130515,0.0001,2]
[408202007,1773223841409,-457200.73282116,0.0001,2]
[408202008,1773223841839,-23030.50160993,0.0001,2]
[408202009,1773223841851,-2260.26169085,0.0001,2]
[408202010,1773223841861,-1996.42582076,0.0001,2]
[408202011,1773223841872,-955.5738533,0.0001,2]
[408202012,1773223842005,-5890.6388292,0.0001,2]
[408202029,1773223845764,-4149.04977456,9.9e-05,2]
[408202030,1773223849709,151.0,0.000102,120]
[408202061,1773223888375,151.0,0.000102,120]
[408202064,1773223929110,151.0,0.000102,120]
[408202066,1773223962001,151.0,0.000102,120]
[408202068,1773224009024,151.0,0.000102,120]
[408202069,1773224046251,151.0,0.000102,120]
[408202070,1773224079129,151.0,0.000102,120]
[408202071,1773224117629,151.0,0.000102,120]
[408202074,1773224155608,151.0,0.000102,120]
[408202075,1773224189296,151.0,0.000102,120]
[408202076,1773224225964,151.0,0.000102,120]
[408202078,1773224261902,151.0,0.000102,120]
[408202080,1773224295151,151.0,0.000102,120]
[408202081,1773224326739,151.0,0.000102,120]
[408202083,1773224366856,151.0,0.000102,120]
[408202087,1773224417576,151.0,0.000102,120]
[408202088,1773224462599,151.0,0.000102,120]
[408202090,1773224498273,151.0,0.000102,120]
[408202091,1773224528726,151.0,0.000102,120]
[408202094,1773224561821,151.0,0.000102,120]
[408202095,1773224605933,151.0,0.000102,120]
[408202096,1773224637292,151.0,0.000102,120]
[408202097,1773224685427,151.0,0.000102,120]
[408202099,1773224717979,151.0,0.000102,120]
[408202101,1773224755896,151.0,0.000102,120]
[408202103,1773224787519,151.0,0.000102,120]
[408202104,1773224828293,151.0,0.000102,120]
[408202106,1773224878630,151.0,0.000102,120]
[408202108,1773224916080,151.0,0.000102,120]
[408202109,1773224958116,151.0,0.000102,120]
[408202110,1773224998684,151.0,0.000102,120]
[408202111,1773225028476,-2087.47085234,3.389e-05,2]
[408202122,1773225031799,-344.00153,3.389e-05,2]
[408202125,1773225031811,-303.03,3.389e-05,2]
[408202127,1773225031823,-382.96704325,3.389e-05,2]
[408202129,1773225031834,-347.295,3.389e-05,2]
[408202132,1773225031855,-1535.23557441,3.389e-05,2]
[408202134,1773225031864,-247.43976731,3.423e-05,2]
[408202136,1773225031873,-300.0,3.522e-05,2]
[408202138,1773225031882,-300.0,3.522e-05,2]
[408202140,1773225031892,-300.0,3.522e-05,2]
[408202142,1773225031901,-353.0,3.522e-05,2]
[408202144,1773225031910,-639.0,3.523e-05,2]
[408202146,1773225031919,-2193.0,3.523e-05,2]
[408202147,1773225031928,-733.0,3.523e-05,2]
[408202150,1773225031938,-223.126,3.523e-05,2]
[408202151,1773225031946,-5909.8741311,5e-05,2]
[408202153,1773225031955,-6062.82165582,5.1e-05,2]
[408202186,1773225038044,-5386.07649844,5.1e-05,2]
[408202188,1773225038054,-355.67385496,5.399e-05,2]
[408202190,1773225038063,-500.0,5.399e-05,2]
[408202192,1773225038073,-243.37676384,5.399e-05,2]
[408202194,1773225038081,-500.0,5.399e-05,2]
[408202196,1773225038090,-500.0,5.399e-05,2]
[408202198,1773225038100,-500.0,5.399e-05,2]
[408202200,1773225038109,-294.49234807,5.399e-05,2]
[408202202,1773225038118,-14549.68532775,5.4e-05,2]
[408202204,1773225038126,-291.97892542,5.423e-05,2]
[408202206,1773225038136,-445.34388445,5.479e-05,2]
[408202208,1773225038144,-639.0,6.523e-05,2]
[408202210,1773225038153,-2193.0,6.523e-05,2]
[408202212,1773225038162,-733.0,6.523e-05,2]
[408202214,1773225038171,-336.51808354,7.423e-05,2]
[408202216,1773225038179,-381.05724165,9.423e-05,2]
[408202218,1773225038189,-639.0,9.523e-05,2]
[408202220,1773225038198,-2019.652,9.523e-05,2]
[408202222,1773225038207,-733.0,9.523e-05,2]
[408202224,1773225038215,-500.45582017,9.6e-05,2]
[408202226,1773225038224,-500.0,9.773e-05,2]
[408202228,1773225038233,-500.0,9.773e-05,2]
[408202230,1773225038242,-500.0,9.773e-05,2]
[408202232,1773225038251,-194.72792766,9.793e-05,2]
[408202233,1773225038260,-500.0,9.798e-05,2]
[408202235,1773225038270,-192.18682209,9.798e-05,2]
[408202237,1773225038279,-159987.30855319,9.799e-05,2]
[408202242,1773225038311,151.0,0.000102,120]
[408202286,1773225040503,-2357.72519592,7.414e-05,2]
[408202293,1773225043174,-17810.59662298,7.414e-05,2]
[408202294,1773225043183,-60850.06344515,9.799e-05,2]
[408202295,1773225043194,-666.48382913,9.799e-05,2]
[408202297,1773225046027,-1449.1617561,9.799e-05,2]
[408202298,1773225046188,-12624.80350052,9.799e-05,2]
[408202309,1773225076131,151.0,0.000102,120]
[408202311,1773225106805,151.0,0.000102,120]
[408202313,1773225141869,151.0,0.000102,120]
[408202315,1773225167351,12581.74,0.000102,120]
[408202316,1773225175928,151.0,0.000102,120]
[408202318,1773225215101,151.0,0.000102,120]
[408202319,1773225251817,151.0,0.000102,120]
[408202321,1773225287512,151.0,0.000102,120]
[408202322,1773225318291,151.0,0.000102,120]
[408202323,1773225358233,151.0,0.000102,120]
[408202325,1773225402084,151.0,0.000102,120]
[408202329,1773225438036,151.0,0.000102,120]
[408202331,1773225471973,151.0,0.000102,120]
[408202340,1773225515941,151.0,0.000102,120]
[408202345,1773225555828,151.0,0.000102,120]
[408202346,1773225589310,151.0,0.000102,120]
[408202348,1773225635695,151.0,0.000102,120]
[408202350,1773225665897,151.0,0.000102,120]
[408202351,1773225705944,151.0,0.000102,120]
[408202352,1773225735832,151.0,0.000102,120]
[408202354,1773225768094,151.0,0.000102,120]
[408202355,1773225798448,151.0,0.000102,120]
[408202356,1773225826146,-1200.48487965,3.967e-05,2]
[408202357,1773225826167,-222.29988695,3.987e-05,2]
[408202358,1773225831925,151.0,0.000102,120]
[408202359,1773225846786,-2000.0,4.171e-05,2]
[408202360,1773225848101,-2000.0,4.171e-05,2]
[408202361,1773225848229,-1000.0,4.171e-05,2]
[408202362,1773225848249,-639.0,4.213e-05,2]
[408202363,1773225848269,-361.0,4.213e-05,2]
[408202364,1773225848806,-1032.0,4.213e-05,2]
[408202365,1773225848826,-733.0,4.213e-05,2]
[408202366,1773225848848,-235.0,5.987e-05,2]
[408202367,1773225853714,-2000.0,5.927e-05,2]
[408202368,1773225854855,-2000.0,5.927e-05,2]
[408202369,1773225855316,-2000.0,4e-05,2]
[408202370,1773225856463,-2000.0,4e-05,2]
[408202371,1773225866544,-600.0,4e-05,2]
[408202372,1773225868096,151.0,0.000102,120]
[408202373,1773225906357,151.0,0.000102,120]
[408202374,1773225936665,151.0,0.000102,120]
[408202375,1773225972669,151.0,0.000102,120]
[408202382,1773226018482,151.0,0.000102,120]
[408202384,1773226056509,151.0,0.000102,120]
[408202385,1773226088061,151.0,0.000102,120]
[408202386,1773226125505,151.0,0.000102,120]
[408202388,1773226166168,151.0,0.000102,120]
[408202389,1773226198418,151.0,0.000102,120]
[408202420,1773226231967,-1200.48487965,3.96e-05,2]
[408202609,1773226237857,151.0,0.000102,120]
[408202610,1773226238146,-986.40992806,3.96e-05,2]
[408202624,1773226240967,-213.15388921,3.98e-05,2]
[408202625,1773226240977,-3120.0,4e-05,2]
[408202626,1773226240987,-1393.0,4.213e-05,2]
[408202627,1773226240997,-571.554,4.213e-05,2]
[408202628,1773226241006,-251.52158927,5.98e-05,2]
[408202629,1773226241016,-4870.7417795,6.999e-05,2]
[408202630,1773226241025,-1393.0,7.213e-05,2]
[408202631,1773226241034,-289.88928932,7.98e-05,2]
[408202632,1773226241044,-940.5276958,8.7e-05,2]
[408202633,1773226241053,-2278.5771703,8.873e-05,2]
[408202634,1773226241062,-5053.0300151,8.873e-05,2]
[408202635,1773226241072,-5508.61695478,9.499e-05,2]
[408202648,1773226243339,-5000.0,3.92e-05,2]
[408202649,1773226243348,-8125.07596323,9.499e-05,2]
[408202664,1773226275692,151.0,0.000102,120]
[408202666,1773226317750,151.0,0.000102,120]
[408202668,1773226365850,151.0,0.000102,120]
[408202679,1773226396323,151.0,0.000102,120]
[408202682,1773226435677,151.0,0.000102,120]
[408202685,1773226468658,151.0,0.000102,120]
[408202686,1773226508701,151.0,0.000102,120]
[408202687,1773226541993,151.0,0.000102,120]
[408202688,1773226576468,151.0,0.000102,120]
[408202689,1773226618367,151.0,0.000102,120]
[408202691,1773226651973,151.0,0.000102,120]
[408202693,1773226687397,151.0,0.000102,120]
[408202695,1773226737988,151.0,0.000102,120]
[408202697,1773226768115,151.0,0.000102,120]
[408202699,1773226806486,151.0,0.000102,120]
[408202700,1773226838471,151.0,0.000102,120]
[408202701,1773226845775,-1951.09914053,4.047e-05,2]
[408202703,1773226876374,151.0,0.000102,120]
[408202706,1773226911923,151.0,0.000102,120]
[408202709,1773226946099,151.0,0.000102,120]
[408202711,1773226988879,151.0,0.000102,120]
[408202712,1773227022286,151.0,0.000102,120]
[408202713,1773227066203,151.0,0.000102,120]
[408202714,1773227108109,151.0,0.000102,120]
[408202716,1773227147415,151.0,0.000102,120]
[408202717,1773227188460,151.0,0.000102,120]
[408202718,1773227225693,151.0,0.000102,120]
[408202719,1773227258889,151.0,0.000102,120]
[408202720,1773227288645,151.0,0.000102,120]
[408202721,1773227322661,151.0,0.000102,120]
[408202722,1773227357777,151.0,0.000102,120]
[408202727,1773227398383,151.0,0.000102,120]
[408202728,1773227402269,189.12,2e-05,2]
[408203024,1773227437564,151.0,0.000102,120]
[408203029,1773227438230,-461.99646821,3.661e-05,2]
[408203030,1773227438283,-4538.00353179,3.661e-05,2]
[408203031,1773227438293,-307.69933074,3.698e-05,2]
[408203032,1773227438302,-204.39753296,3.717e-05,2]
[408203033,1773227438312,-150.0,4.213e-05,2]
[408203034,1773227438323,-691.232,4.347e-05,2]
[408203035,1773227438332,-500.0,5.018e-05,2]
[408203036,1773227438342,-241.18908889,5.717e-05,2]
[408203037,1773227438351,-562.3931543,7.079e-05,2]
[408203038,1773227438360,-1200.0,7.236e-05,2]
[408203039,1773227438370,-167.988352,7.238e-05,2]
[408203040,1773227438379,-277.98064482,7.717e-05,2]
[408203041,1773227438388,-443.0,7.96e-05,2]
[408203042,1773227438397,-1957.856,8.055e-05,2]
[408203043,1773227438407,-1799.25481319,8.11e-05,2]
[408203044,1773227438418,-231.04185881,8.11e-05,2]
[408203045,1773227438428,-169.56864099,8.165e-05,2]
[408203046,1773227438439,-849.87709813,8.165e-05,2]
[408203047,1773227438448,-158.47605567,8.203e-05,2]
[408203048,1773227438457,-500.0,9.273e-05,2]
[408203049,1773227438466,-254.94359423,9.298e-05,2]
[408203050,1773227438476,-203399.39889957,9.299e-05,2]
[408203149,1773227446347,-245.03175936,3.624e-05,2]
[408203150,1773227446357,-276.1592695,9.206e-05,2]
[408203151,1773227481920,151.0,0.000102,120]
[408203152,1773227528847,151.0,0.000102,120]
[408203155,1773227566519,151.0,0.000102,120]
[408203156,1773227598674,151.0,0.000102,120]
[408203165,1773227638444,151.0,0.000102,120]
[408203168,1773227681920,151.0,0.000102,120]
[408203171,1773227728051,151.0,0.000102,120]
[408203172,1773227768075,151.0,0.000102,120]
[408203173,1773227808262,151.0,0.000102,120]
[408203179,1773227849593,151.0,0.000102,120]
[408203183,1773227897276,151.0,0.000102,120]
[408203184,1773227928949,151.0,0.000102,120]
[408203192,1773227968287,151.0,0.000102,120]
[408203193,1773228008298,151.0,0.000102,120]
[408203198,1773228041998,151.0,0.000102,120]
[408203212,1773228077937,151.0,0.000102,120]
[408203213,1773228119157,151.0,0.000102,120]
[408203215,1773228166336,151.0,0.000102,120]
[408203218,1773228202639,151.0,0.000102,120]
[408203219,1773228246857,151.0,0.000102,120]
[408203235,1773228288593,151.0,0.000102,120]
[408203238,1773228326602,151.0,0.000102,120]
[408203242,1773228375711,151.0,0.000102,120]
[408203245,1773228415873,151.0,0.000102,120]
[408203247,1773228458541,151.0,0.000102,120]
[408203249,1773228503044,151.0,0.000102,120]
[408203251,1773228538706,151.0,0.000102,120]
[408203252,1773228571883,151.0,0.000102,120]
[408203253,1773228608823,151.0,0.000102,120]
[408203312,1773228638671,-178.92229775,5.913e-05,14]
[408203314,1773228638681,-5000.0,7.202e-05,2]
[408203316,1773228638691,-523.0,7.275e-05,2]
[408203318,1773228638700,-195.81298262,7.312e-05,2]
[408203320,1773228638709,-1200.0,8.322e-05,2]
[408203322,1773228638719,-2817.5075074,8.323e-05,2]
[408203324,1773228638729,-2031.8633113,8.341e-05,2]
[408203326,1773228638738,-5928.30994647,8.423e-05,2]
[408203332,1773228638780,-163.12465723,8.423e-05,2]
[408203334,1773228638789,-255.224,8.5e-05,2]
[408203336,1773228638799,-6767.65856457,8.523e-05,2]
[408203338,1773228638808,-1379.0589474,8.593e-05,2]
[408203340,1773228638818,-6976.86692868,8.623e-05,2]
[408203342,1773228638827,-2724.58098037,8.623e-05,2]
[408203344,1773228638836,-2962.99889707,8.723e-05,2]
[408203346,1773228638847,-2264.83482016,8.723e-05,2]
[408203348,1773228638858,-2116.3165722,8.723e-05,2]
[408203350,1773228638870,-99.7322361,8.723e-05,2]
[408203352,1773228638879,-444.61932975,9e-05,2]
[408203354,1773228638889,-270.000001,9e-05,2]
[408203356,1773228638899,-500.0,9.083e-05,2]
[408203358,1773228638908,-49.9931278,9.1e-05,2]
[408203539,1773228643736,-2699.99999995,8.5e-05,2]
[408203540,1773228643846,-714.48334445,8.5e-05,2]
[408203541,1773228643857,-520.91152829,9.1e-05,2]
[408203542,1773228643868,-484.53077546,9.205e-05,2]
[408203543,1773228643879,-5024.53447312,9.206e-05,2]
[408203551,1773228646535,-8353.56492857,9.206e-05,2]
[408203552,1773228652011,151.0,0.000102,120]
[408203555,1773228687614,151.0,0.000102,120]
[408203558,1773228726726,151.0,0.000102,120]
[408203561,1773228767171,151.0,0.000102,120]
[408203563,1773228798284,151.0,0.000102,120]
[408203564,1773228837570,151.0,0.000102,120]
[408203565,1773228869585,151.0,0.000102,120]
[408203566,1773228878406,-4200.0,5.448e-05,2]
[408203567,1773228902467,151.0,0.000102,120]
[408203569,1773228941968,151.0,0.000102,120]
[408203572,1773228976370,151.0,0.000102,120]
[408203574,1773229008441,151.0,0.000102,120]
[408203582,1773229045736,151.0,0.000102,120]
[408203585,1773229078621,151.0,0.000102,120]
[408203586,1773229115621,151.0,0.000102,120]
[408203587,1773229145887,151.0,0.000102,120]
[408203588,1773229178508,151.0,0.000102,120]
[408203589,1773229212032,151.0,0.000102,120]
[408203590,1773229245757,151.0,0.000102,120]
[408203591,1773229277521,151.0,0.000102,120]
[408203593,1773229301882,1299.999999,0.000102,120]
[408203599,1773229318258,151.0,0.000102,120]
[408203602,1773229351987,151.0,0.000102,120]
[408203603,1773229387873,151.0,0.000102,120]
[408203605,1773229418221,151.0,0.000102,120]
[408203606,1773229456201,151.0,0.000102,120]
[408203608,1773229491841,151.0,0.000102,120]
[408203611,1773229528051,151.0,0.000102,120]
[408203613,1773229568783,151.0,0.000102,120]
[408203615,1773229607451,151.0,0.000102,120]
[408203617,1773229658774,151.0,0.000102,120]
[408203619,1773229698524,151.0,0.000102,120]
[408203622,1773229732539,151.0,0.000102,120]
[408203626,1773229775465,151.0,0.000102,120]
[408203627,1773229802444,180.19,2e-05,2]
[408203628,1773229815573,151.0,0.000102,120]
[408203651,1773229831529,-782.10722471,5.24e-05,2]
[408203653,1773229831539,-5000.0,5.34e-05,2]
[408203655,1773229831549,-202.03382655,5.421e-05,2]
[408203657,1773229831560,-804.80950767,5.503e-05,2]
[408203660,1773229831571,-588.19049233,5.503e-05,2]
[408203662,1773229831580,-238.39991532,7.421e-05,2]
[408203664,1773229831589,-482.0,8.501e-05,2]
[408203666,1773229831600,-1393.0,8.503e-05,2]
[408203667,1773229831610,-308.3405592,8.614e-05,2]
[408203669,1773229831619,-300.0,8.981e-05,2]
[408203671,1773229831628,-500.0,8.983e-05,2]
[408203673,1773229831638,-500.0,8.983e-05,2]
[408203675,1773229831647,-500.0,8.983e-05,2]
[408203677,1773229831656,-500.0,8.983e-05,2]
[408203679,1773229831665,-339.17154283,9.005e-05,2]
[408203681,1773229831674,-16305.83728983,9.006e-05,2]
[408203684,1773229831691,-1002.36705731,9.006e-05,2]
[408203794,1773229837690,-56619.27614112,9.006e-05,2]
[408203795,1773229837701,-988.23170697,9.006e-05,2]
[408203796,1773229837713,-36790.64988736,9.006e-05,2]
[408203797,1773229837796,-1972.74945688,9.006e-05,2]
[408203798,1773229837808,-1066.8539198,9.006e-05,2]
[408203840,1773229840155,-4631.09590182,9.006e-05,2]
[408204059,1773229842938,-500.0,9.006e-05,2]
[408204061,1773229842947,-8478.1953394,9.006e-05,2]
[408204076,1773229845677,-482.64,9.006e-05,2]
[408204089,1773229845784,-1047.76194729,9.006e-05,2]
[408204119,1773229852104,151.0,0.000102,120]
[408204121,1773229898680,151.0,0.000102,120]
[408204123,1773229947468,151.0,0.000102,120]
[408204125,1773229988065,151.0,0.000102,120]
[408204126,1773230028881,151.0,0.000102,120]
[408204127,1773230067652,151.0,0.000102,120]
[408204128,1773230107557,151.0,0.000102,120]
[408204129,1773230148212,151.0,0.000102,120]
[408204130,1773230178235,151.0,0.000102,120]
[408204139,1773230225907,151.0,0.000102,120]
[408204140,1773230258158,151.0,0.000102,120]
[408204141,1773230288995,167.231187,7.567e-05,120]
[408204142,1773230295670,151.0,0.000102,120]
[408204145,1773230326567,151.0,0.000102,120]
[408204150,1773230368466,151.0,0.000102,120]
[408204153,1773230406051,151.0,0.000102,120]
[408204155,1773230446958,151.0,0.000102,120]
[408204156,1773230462114,-181.0109664,4.978e-05,2]
[408204157,1773230488278,151.0,0.000102,120]
[408204158,1773230539168,151.0,0.000102,120]
[408204165,1773230577886,151.0,0.000102,120]
[408204167,1773230618746,151.0,0.000102,120]
[408204169,1773230649281,151.0,0.000102,120]
[408204174,1773230688395,151.0,0.000102,120]
[408204175,1773230722578,151.0,0.000102,120]
[408204177,1773230762317,151.0,0.000102,120]
[408204178,1773230798177,151.0,0.000102,120]
[408204179,1773230828981,151.0,0.000102,120]
[408204180,1773230861941,151.0,0.000102,120]
[408204182,1773230905457,151.0,0.000102,120]
[408204183,1773230935570,151.0,0.000102,120]
[408204188,1773230965790,151.0,0.000102,120]
[408204189,1773231002673,189.12,2e-05,2]
[408204190,1773231008319,151.0,0.000102,120]
[408204294,1773231037918,-5000.0,4.511e-05,2]
[408204295,1773231037928,-5000.0,4.557e-05,2]
[408204296,1773231037937,-2307.69933074,4.603e-05,2]
[408204297,1773231037946,-213.42883711,4.674e-05,2]
[408204298,1773231037955,-1200.0,4.696e-05,2]
[408204299,1773231037964,-206.0588686,4.792e-05,2]
[408204300,1773231037974,-2261.41780514,5.018e-05,2]
[408204301,1773231037984,-5001.68742659,5.118e-05,2]
[408204302,1773231037994,-254.27980979,5.13e-05,2]
[408204303,1773231038004,-1321.0,5.166e-05,2]
[408204304,1773231038015,-5541.5618542,5.218e-05,2]
[408204305,1773231038024,-5586.9669456,5.318e-05,2]
[408204306,1773231038033,-6081.4362819,5.418e-05,2]
[408204307,1773231038043,-203.406,5.717e-05,2]
[408204308,1773231038052,-691.232,5.717e-05,2]
[408204309,1773231038061,-251.84602779,6.674e-05,2]
[408204310,1773231038071,-167.231187,7.567e-05,2]
[408204312,1773231038079,-539.39197825,8.4e-05,2]
[408204314,1773231038088,-1283.0122387,8.4e-05,2]
[408204316,1773231038097,-455.08982024,8.503e-05,2]
[408204318,1773231038107,-500.0,8.503e-05,2]
[408204320,1773231038116,-500.0,8.503e-05,2]
[408204322,1773231038125,-500.0,8.503e-05,2]
[408204323,1773231038135,-500.0,8.503e-05,2]
[408204324,1773231038144,-500.0,8.503e-05,2]
[408204325,1773231038157,-237.42007998,8.52e-05,2]
[408204326,1773231038167,-1074255.98683898,8.521e-05,2]
[408204327,1773231038178,-4080.79011535,8.521e-05,2]
[408204328,1773231038190,-1391.85448571,8.521e-05,2]
[408204329,1773231038201,-1091.21242394,8.521e-05,2]
[408204348,1773231040372,-2357.72519592,8.436e-05,2]
[408204350,1773231040382,-1108.95166769,8.521e-05,2]
[408204361,1773231040480,-647.17324618,8.521e-05,2]
[408204395,1773231045877,-274.17,8.436e-05,2]
[408204396,1773231045891,-4725.83,8.436e-05,2]
[408204397,1773231045903,-7898.98474271,8.521e-05,2]
[408204398,1773231045935,-277.58,8.521e-05,2]
[408204399,1773231046043,-1726.25,8.521e-05,2]
[408204400,1773231046204,-1021.47584788,8.521e-05,2]
[408204403,1773231055620,151.0,0.000102,120]
[408204462,1773231098129,151.0,0.000102,120]
[408204467,1773231138889,151.0,0.000102,120]
[408204470,1773231188496,151.0,0.000102,120]
[408204473,1773231227987,151.0,0.000102,120]
[408204474,1773231271369,151.0,0.000102,120]
[408204480,1773231312608,151.0,0.000102,120]
[408204485,1773231345888,151.0,0.000102,120]
[408204490,1773231386021,151.0,0.000102,120]
[408204495,1773231428977,151.0,0.000102,120]
[408204497,1773231468401,151.0,0.000102,120]
[408204500,1773231602840,186.14,2e-05,2]
[408204502,1773231603161,186.14,2.1e-05,2]
[408204503,1773231603478,186.14,2.2e-05,2]
[408204527,1773232202585,185.35,2e-05,2]
[408204610,1773232238614,-5000.0,6.189e-05,2]
[408204611,1773232238624,-509.0,6.189e-05,2]
[408204612,1773232238633,-893.601,6.213e-05,2]
[408204613,1773232238642,-210.19430239,6.22e-05,2]
[408204614,1773232238652,-603.6357312,7.567e-05,2]
[408204615,1773232238661,-161.74001871,7.725e-05,2]
[408204616,1773232238670,-261.38623581,8.21e-05,2]
[408204617,1773232238679,-248.02927682,8.22e-05,2]
[408204618,1773232238689,-372.88284645,8.436e-05,2]
[408204619,1773232238699,-300.0,8.447e-05,2]
[408204620,1773232238708,-265.0,8.447e-05,2]
[408204621,1773232238722,-300.0,8.447e-05,2]
[408204622,1773232238733,-2724.58098037,8.447e-05,2]
[408204623,1773232238742,-14284.8007927,8.449e-05,2]
[408204624,1773232238751,-154.9667585,8.449e-05,2]
[408204625,1773232238762,-35457.5522043,8.449e-05,2]
[408204626,1773232238774,-2913.1536039,8.449e-05,2]
[408204627,1773232238784,-255.224,8.62e-05,2]
[408204628,1773232238793,-600.0,8.792e-05,2]
[408204629,1773232238803,-166.19405598,8.85e-05,2]
[408204630,1773232238812,-199.31198333,8.851e-05,2]
[408204631,1773232238821,-500.0,8.851e-05,2]
[408204632,1773232238830,-500.0,8.851e-05,2]
[408204633,1773232238840,-500.0,8.851e-05,2]
[408204634,1773232238850,-445.202766,8.851e-05,2]
[408204635,1773232238859,-500.0,8.851e-05,2]
[408204636,1773232238868,-1957.856,8.851e-05,2]
[408204637,1773232238877,-500.0,8.851e-05,2]
[408204638,1773232238887,-162.380719,8.851e-05,2]
[408204639,1773232238897,-500.0,8.851e-05,2]
[408204640,1773232238907,-500.0,8.851e-05,2]
[408204641,1773232238917,-500.0,8.851e-05,2]
[408204642,1773232238927,-500.0,8.851e-05,2]
[408204643,1773232238936,-500.0,8.851e-05,2]
[408204644,1773232238946,-500.0,8.851e-05,2]
[408204645,1773232238955,-500.0,8.851e-05,2]
[408204646,1773232238964,-500.0,8.851e-05,2]
[408204647,1773232238973,-500.0,8.851e-05,2]
[408204648,1773232238984,-500.0,8.851e-05,2]
[408204649,1773232238994,-500.0,8.851e-05,2]
[408204650,1773232239003,-500.0,8.851e-05,2]
[408204651,1773232239012,-544.39322357,8.851e-05,2]
[408204652,1773232239021,-2150.738,8.851e-05,2]
[408204653,1773232239030,-537.68450001,8.851e-05,2]
[408204654,1773232239040,-1799.25481319,8.906e-05,2]
[408204655,1773232239049,-1529.34699502,9.206e-05,2]
[408204812,1773232243698,-5000.0,6.127e-05,2]
[408204813,1773232243708,-19991.46285557,9.206e-05,2]
[408204940,1773232434329,45991.41483589,0.0001021,120]
[408204950,1773232803838,185.34,2e-05,2]
[408204994,1773233403076,156.25,2e-05,2]
[408204995,1773233403336,156.25,2e-05,2]
[408204996,1773233403602,156.25,2.1e-05,2]
[408204997,1773233403875,156.25,2.1e-05,2]
[408204998,1773233404193,156.25,2.1e-05,2]
[408204999,1773233404497,156.25,2.1e-05,2]
[408205000,1773233404734,156.25,2.2e-05,2]
[408205001,1773233405014,156.25,2.2e-05,2]
[408205121,1773233438177,-5000.0,2.827e-05,2]
[408205123,1773233438186,-1970.11201609,2.856e-05,2]
[408205125,1773233438196,-221.65282625,2.871e-05,2]
[408205127,1773233438205,-483.67919264,2.944e-05,2]
[408205129,1773233438215,-1200.0,3.115e-05,2]
[408205131,1773233438224,-483.67919263,3.116e-05,2]
[408205133,1773233438233,-658.0,3.426e-05,2]
[408205135,1773233438243,-216.8564382,4.256e-05,2]
[408205137,1773233438252,-261.55033498,4.871e-05,2]
[408205139,1773233438261,-1146.60891401,5e-05,2]
[408205141,1773233438270,-300.0,5.099e-05,2]
[408205143,1773233438281,-300.0,5.099e-05,2]
[408205145,1773233438290,-300.0,5.099e-05,2]
[408205147,1773233438299,-2764.74025407,5.1e-05,2]
[408205149,1773233438308,-3975.95682065,5.2e-05,2]
[408205151,1773233438317,-5029.23082453,5.4e-05,2]
[408205153,1773233438326,-6001.00293419,5.5e-05,2]
[408205155,1773233438335,-6082.50482852,5.6e-05,2]
[408205157,1773233438344,-300.0,5.609e-05,2]
[408205159,1773233438353,-300.0,5.609e-05,2]
[408205161,1773233438362,-420.0,5.609e-05,2]